[Event "Live Chess"]
[Site "Chess.com"]
[Date "2023.05.20"]
[Round "-"]
[White "1600x"]
[Black "Inglaterra"]
[Result "1-0"]
[WhiteElo "1750"]
[BlackElo "2061"]
[TimeControl "300"]
[EndTime "13:10:28 PDT"]
[Termination "1600x won on time"]

1. Nf3 {[%clk 0:04:49]} 1... c6 {[%clk 0:04:59.4]} 2. e4 {[%clk 0:04:47.3]} 2...
d5 {[%clk 0:04:58.6]} 3. exd5 {[%clk 0:04:46.1]} 3... cxd5 {[%clk 0:04:58.5]} 4.
d4 {[%clk 0:04:44.7]} 4... Nc6 {[%clk 0:04:58]} 5. Bd3 {[%clk 0:04:42.5]} 5...
Bg4 {[%clk 0:04:57.1]} 6. c3 {[%clk 0:04:40.7]} 6... e6 {[%clk 0:04:56.6]} 7. h3
{[%clk 0:04:39.2]} 7... Bh5 {[%clk 0:04:54.6]} 8. Bf4 {[%clk 0:04:37.1]} 8...
Bd6 {[%clk 0:04:52.6]} 9. Bxd6 {[%clk 0:04:35.2]} 9... Qxd6 {[%clk 0:04:52.5]}
10. Nbd2 {[%clk 0:04:33.2]} 10... Nf6 {[%clk 0:04:47.9]} 11. O-O {[%clk
0:04:31.7]} 11... O-O {[%clk 0:04:42.9]} 12. Re1 {[%clk 0:04:29.9]} 12... a6
{[%clk 0:04:33.5]} 13. Qb3 {[%clk 0:04:27.5]} 13... b5 {[%clk 0:04:30]} 14. c4
{[%clk 0:04:20.5]} 14... dxc4 {[%clk 0:04:15.4]} 15. Bxc4 {[%clk 0:04:18]} 15...
bxc4 {[%clk 0:04:13.7]} 16. Qxc4 {[%clk 0:04:15.9]} 16... Nb4 {[%clk 0:04:00.3]}
17. Rac1 {[%clk 0:04:04]} 17... Bg6 {[%clk 0:03:49.6]} 18. Ne5 {[%clk
0:03:58.8]} 18... Nbd5 {[%clk 0:03:40.5]} 19. Qc6 {[%clk 0:03:54.3]} 19... Qxc6
{[%clk 0:03:36.3]} 20. Nxc6 {[%clk 0:03:52.5]} 20... a5 {[%clk 0:03:08.3]} 21.
Nc4 {[%clk 0:03:43.7]} 21... Nb4 {[%clk 0:03:03.7]} 22. Ne7+ {[%clk 0:03:40.2]}
22... Kh8 {[%clk 0:03:00.4]} 23. Ne5 {[%clk 0:03:36.2]} 23... Nxa2 {[%clk
0:02:50.3]} 24. Rc7 {[%clk 0:03:32.9]} 24... Nb4 {[%clk 0:02:38.1]} 25. Rec1
{[%clk 0:03:26.2]} 25... Nbd5 {[%clk 0:02:32.8]} 26. N7xg6+ {[%clk 0:02:45.6]}
26... hxg6 {[%clk 0:02:11.4]} 27. Rxf7 {[%clk 0:02:41.1]} 27... Rxf7 {[%clk
0:02:09.2]} 28. Nxf7+ {[%clk 0:02:39.6]} 28... Kg8 {[%clk 0:02:08.7]} 29. Ng5
{[%clk 0:02:38.1]} 29... Nf4 {[%clk 0:01:48.8]} 30. Kf1 {[%clk 0:02:34]} 30...
Nh7 {[%clk 0:01:46]} 31. Nf3 {[%clk 0:02:03.3]} 31... Rb8 {[%clk 0:01:39]} 32.
g3 {[%clk 0:01:58.9]} 32... Nd3 {[%clk 0:01:34.3]} 33. Rc3 {[%clk 0:01:56.5]}
33... Nxb2 {[%clk 0:01:29.9]} 34. Rc6 {[%clk 0:01:54.8]} 34... Ra8 {[%clk
0:01:25.2]} 35. Rb6 {[%clk 0:01:53.2]} 35... Nc4 {[%clk 0:01:21.8]} 36. Rc6
{[%clk 0:01:48.6]} 36... Na3 {[%clk 0:01:14.6]} 37. Rxe6 {[%clk 0:01:47.2]}
37... a4 {[%clk 0:01:11.2]} 38. Rxg6 {[%clk 0:01:44.7]} 38... Nc4 {[%clk
0:01:08.1]} 39. Rc6 {[%clk 0:01:42.5]} 39... a3 {[%clk 0:01:07]} 40. Rxc4 {[%clk
0:01:41.2]} 40... a2 {[%clk 0:01:06.6]} 41. Rc1 {[%clk 0:01:39.9]} 41... a1=Q
{[%clk 0:01:06]} 42. Rxa1 {[%clk 0:01:38.8]} 42... Rxa1+ {[%clk 0:01:05.2]} 43.
Kg2 {[%clk 0:01:37.5]} 43... Nf6 {[%clk 0:00:59]} 44. Ne5 {[%clk 0:01:35.9]}
44... Ra2 {[%clk 0:00:57.3]} 45. Kf3 {[%clk 0:01:34.2]} 45... Nd5 {[%clk
0:00:54.4]} 46. Ke4 {[%clk 0:01:33]} 46... Nb4 {[%clk 0:00:51]} 47. f3 {[%clk
0:01:31.8]} 47... Re2+ {[%clk 0:00:46.2]} 48. Kf4 {[%clk 0:01:30.2]} 48... Nd5+
{[%clk 0:00:43.4]} 49. Kf5 {[%clk 0:01:19.1]} 49... Re3 {[%clk 0:00:40.6]} 50.
h4 {[%clk 0:01:17]} 50... Nf6 {[%clk 0:00:37.8]} 51. g4 {[%clk 0:01:15.3]} 51...
Re1 {[%clk 0:00:35.4]} 52. g5 {[%clk 0:01:13.9]} 52... Nh5 {[%clk 0:00:32.3]}
53. Kg4 {[%clk 0:01:10.5]} 53... Rd1 {[%clk 0:00:25.4]} 54. Kxh5 {[%clk
0:01:08.5]} 54... Rxd4 {[%clk 0:00:24.7]} 55. g6 {[%clk 0:01:07.2]} 55... Rf4
{[%clk 0:00:20.3]} 56. Kg5 {[%clk 0:01:05.6]} 56... Rf6 {[%clk 0:00:17.5]} 57.
h5 {[%clk 0:01:03.7]} 57... Ra6 {[%clk 0:00:15.6]} 58. h6 {[%clk 0:01:02.2]}
58... gxh6+ {[%clk 0:00:15.1]} 59. Kxh6 {[%clk 0:01:00.6]} 59... Rf6 {[%clk
0:00:14.3]} 60. Kg5 {[%clk 0:00:59]} 60... Ra6 {[%clk 0:00:12.6]} 61. f4 {[%clk
0:00:57.4]} 61... Kg7 {[%clk 0:00:11.8]} 62. f5 {[%clk 0:00:56.1]} 62... Rb6
{[%clk 0:00:11]} 63. Nd3 {[%clk 0:00:54.8]} 63... Ra6 {[%clk 0:00:08.1]} 64. Nf4
{[%clk 0:00:53.7]} 64... Rb6 {[%clk 0:00:06.4]} 65. f6+ {[%clk 0:00:52.4]} 65...
Rxf6 {[%clk 0:00:03.7]} 66. Nh5+ {[%clk 0:00:50.8]} 66... Kg8 {[%clk 0:00:03.2]}
67. Nxf6+ {[%clk 0:00:49.2]} 67... Kh8 {[%clk 0:00:03.1]} 68. Nh5 {[%clk
0:00:47.4]} 68... Kg8 {[%clk 0:00:01.3]} 69. Kf6 {[%clk 0:00:46]} 69... Kh8
{[%clk 0:00:01.2]} 70. Ng7 {[%clk 0:00:43.6]} 70... Kg8 {[%clk 0:00:01.1]} 71.
Nf5 {[%clk 0:00:41.9]} 71... Kh8 {[%clk 0:00:01]} 72. Nd4 {[%clk 0:00:40.2]}
72... Kg8 {[%clk 0:00:00.9]} 73. g7 {[%clk 0:00:38.1]} 73... Kh7 {[%clk
0:00:00.4]} 74. Nf5 {[%clk 0:00:36]} 1-0

[Event "Live Chess"]
[Site "Chess.com"]
[Date "2023.05.20"]
[Round "-"]
[White "JohanKjeldahl"]
[Black "BostonStrangler"]
[Result "1-0"]
[WhiteElo "1837"]
[BlackElo "2043"]
[TimeControl "300"]
[EndTime "13:10:32 PDT"]
[Termination "JohanKjeldahl won by resignation"]

1. c4 {[%clk 0:04:57.4]} 1... g6 {[%clk 0:04:58.1]} 2. Nc3 {[%clk 0:04:56]} 2...
Bg7 {[%clk 0:04:56.2]} 3. d4 {[%clk 0:04:54.9]} 3... c5 {[%clk 0:04:55.1]} 4. d5
{[%clk 0:04:53.1]} 4... Nf6 {[%clk 0:04:53.8]} 5. e4 {[%clk 0:04:51.9]} 5... d6
{[%clk 0:04:53.2]} 6. f3 {[%clk 0:04:50.3]} 6... O-O {[%clk 0:04:52.3]} 7. Be3
{[%clk 0:04:49.7]} 7... b5 {[%clk 0:04:51.4]} 8. cxb5 {[%clk 0:04:47.4]} 8... a6
{[%clk 0:04:50.4]} 9. bxa6 {[%clk 0:04:45.6]} 9... Bxa6 {[%clk 0:04:50.3]} 10.
Bxa6 {[%clk 0:04:44]} 10... Nxa6 {[%clk 0:04:50.2]} 11. Nge2 {[%clk 0:04:42.5]}
11... Qa5 {[%clk 0:04:49.1]} 12. O-O {[%clk 0:04:40.9]} 12... Rfb8 {[%clk
0:04:48.1]} 13. Qd2 {[%clk 0:04:35.5]} 13... Nb4 {[%clk 0:04:46.8]} 14. a3
{[%clk 0:04:31.1]} 14... Na6 {[%clk 0:04:45.8]} 15. Rfb1 {[%clk 0:04:20.1]}
15... Nd7 {[%clk 0:04:44.1]} 16. b4 {[%clk 0:04:02.3]} 16... cxb4 {[%clk
0:04:41.6]} 17. axb4 {[%clk 0:04:01.2]} 17... Qc7 {[%clk 0:04:41.2]} 18. b5
{[%clk 0:03:55.3]} 18... Nac5 {[%clk 0:04:39.5]} 19. Rxa8 {[%clk 0:03:52.2]}
19... Rxa8 {[%clk 0:04:38.2]} 20. Nd4 {[%clk 0:03:46.9]} 20... Nb6 {[%clk
0:04:36.9]} 21. Nc6 {[%clk 0:03:42]} 21... Nc4 {[%clk 0:04:35.1]} 22. Qe1 {[%clk
0:03:36.4]} 22... Ra3 {[%clk 0:04:25.3]} 23. Bxc5 {[%clk 0:03:33.6]} 23... dxc5
{[%clk 0:04:08.3]} 24. Ne2 {[%clk 0:03:23.3]} 24... Nb6 {[%clk 0:03:45.3]} 25.
Qc1 {[%clk 0:03:18.5]} 25... c4 {[%clk 0:03:43.5]} 26. Qxa3 {[%clk 0:03:14.3]}
1-0

[Event "Live Chess"]
[Site "Chess.com"]
[Date "2023.05.20"]
[Round "-"]
[White "OleksiyJr1"]
[Black "DmitryVasliev"]
[Result "0-1"]
[WhiteElo "962"]
[BlackElo "1681"]
[TimeControl "300"]
[EndTime "13:10:35 PDT"]
[Termination "DmitryVasliev won by checkmate"]

1. e4 {[%clk 0:04:57.3]} 1... d6 {[%clk 0:04:59.4]} 2. Nf3 {[%clk 0:04:55.5]}
2... c6 {[%clk 0:04:58.8]} 3. Nc3 {[%clk 0:04:54.3]} 3... g6 {[%clk 0:04:58.4]}
4. d4 {[%clk 0:04:54]} 4... Bg7 {[%clk 0:04:57.8]} 5. e5 {[%clk 0:04:53.6]} 5...
d5 {[%clk 0:04:56.1]} 6. Be3 {[%clk 0:04:51.3]} 6... e6 {[%clk 0:04:55.1]} 7.
Bd3 {[%clk 0:04:50.8]} 7... h6 {[%clk 0:04:54.5]} 8. O-O {[%clk 0:04:50]} 8...
Ne7 {[%clk 0:04:54.1]} 9. h3 {[%clk 0:04:49.6]} 9... a6 {[%clk 0:04:49.7]} 10.
a3 {[%clk 0:04:47.8]} 10... Nd7 {[%clk 0:04:46.3]} 11. b4 {[%clk 0:04:47.2]}
11... b6 {[%clk 0:04:44.4]} 12. a4 {[%clk 0:04:46.5]} 12... Qc7 {[%clk
0:04:42.9]} 13. b5 {[%clk 0:04:45.6]} 13... a5 {[%clk 0:04:32.9]} 14. bxc6
{[%clk 0:04:41.5]} 14... Qxc6 {[%clk 0:04:25.4]} 15. Bb5 {[%clk 0:04:33.2]}
15... Qb7 {[%clk 0:04:15.1]} 16. Rb1 {[%clk 0:04:27.9]} 16... O-O {[%clk
0:04:12.7]} 17. Kh2 {[%clk 0:04:03.4]} 17... Kh7 {[%clk 0:04:11.4]} 18. Ne2
{[%clk 0:03:52.9]} 18... Nf5 {[%clk 0:04:05.1]} 19. Bf4 {[%clk 0:03:48.7]} 19...
Qc7 {[%clk 0:03:57.7]} 20. g4 {[%clk 0:03:17.8]} 20... Ne7 {[%clk 0:03:55.5]}
21. Rc1 {[%clk 0:03:11.8]} 21... Bb7 {[%clk 0:03:44.5]} 22. Nd2 {[%clk
0:03:08.9]} 22... Rac8 {[%clk 0:03:31.5]} 23. c4 {[%clk 0:03:03.7]} 23... Qd8
{[%clk 0:03:22.3]} 24. cxd5 {[%clk 0:03:01]} 24... Nxd5 {[%clk 0:03:18.2]} 25.
Rxc8 {[%clk 0:02:57.6]} 25... Qxc8 {[%clk 0:03:12.3]} 26. Nc4 {[%clk 0:02:52.6]}
26... Nxf4 {[%clk 0:02:58.5]} 27. Nd6 {[%clk 0:02:41.9]} 27... Qc7 {[%clk
0:02:54.8]} 28. Nxf4 {[%clk 0:02:39.8]} 28... Nb8 {[%clk 0:02:35.8]} 29. Nxb7
{[%clk 0:02:37.3]} 29... Qxb7 {[%clk 0:02:34.6]} 30. d5 {[%clk 0:02:34.8]} 30...
Bxe5 {[%clk 0:02:30.5]} 31. Kg3 {[%clk 0:02:11.1]} 31... g5 {[%clk 0:02:22.1]}
32. Re1 {[%clk 0:02:08.1]} 32... Bxf4+ {[%clk 0:02:17.5]} 33. Kg2 {[%clk
0:02:07.5]} 33... exd5 {[%clk 0:01:49.1]} 34. Qd3+ {[%clk 0:02:00.2]} 34... f5
{[%clk 0:01:42.5]} 35. gxf5 {[%clk 0:01:50.8]} 35... Rf6 {[%clk 0:01:41.5]} 36.
Re6 {[%clk 0:01:48.4]} 36... d4+ {[%clk 0:01:22.5]} 37. f3 {[%clk 0:01:44.2]}
37... Qg7 {[%clk 0:01:07.5]} 38. Qxd4 {[%clk 0:01:20.8]} 38... Rxf5 {[%clk
0:00:27.2]} 39. Qxg7+ {[%clk 0:01:11.8]} 39... Kxg7 {[%clk 0:00:26]} 40. Re7+
{[%clk 0:01:08.9]} 40... Kf6 {[%clk 0:00:23.7]} 41. Rb7 {[%clk 0:01:00.7]} 41...
Rc5 {[%clk 0:00:12.1]} 42. Rxb6+ {[%clk 0:00:52.5]} 42... Ke5 {[%clk 0:00:11.4]}
43. Rxb8 {[%clk 0:00:50.6]} 43... Rc2+ {[%clk 0:00:07.8]} 44. Kf1 {[%clk
0:00:44.9]} 44... Kd4 {[%clk 0:00:07.1]} 45. Rd8+ {[%clk 0:00:43]} 45... Ke3
{[%clk 0:00:06.3]} 46. Re8+ {[%clk 0:00:41.8]} 46... Kxf3 {[%clk 0:00:05.4]} 47.
Rf8 {[%clk 0:00:39.6]} 47... Rc1# {[%clk 0:00:03.7]} 0-1

[Event "Live Chess"]
[Site "Chess.com"]
[Date "2023.05.20"]
[Round "-"]
[White "Man-Del-Brot"]
[Black "alanmike75"]
[Result "0-1"]
[WhiteElo "1070"]
[BlackElo "1535"]
[TimeControl "300"]
[EndTime "13:10:37 PDT"]
[Termination "alanmike75 won on time"]

1. g4 {[%clk 0:04:55.4]} 1... e5 {[%clk 0:04:56.4]} 2. h4 {[%clk 0:04:53.2]}
2... d6 {[%clk 0:04:55]} 3. g5 {[%clk 0:04:52.3]} 3... Nc6 {[%clk 0:04:53.8]} 4.
Bg2 {[%clk 0:04:51.4]} 4... Bd7 {[%clk 0:04:51.9]} 5. d3 {[%clk 0:04:50.6]} 5...
Nge7 {[%clk 0:04:48.2]} 6. Nd2 {[%clk 0:04:47.7]} 6... Ng6 {[%clk 0:04:46]} 7.
Ne4 {[%clk 0:04:33.4]} 7... d5 {[%clk 0:04:38.9]} 8. Nc3 {[%clk 0:04:29.9]} 8...
d4 {[%clk 0:04:30.3]} 9. Nb1 {[%clk 0:04:19.5]} 9... Bb4+ {[%clk 0:04:27.2]} 10.
Bd2 {[%clk 0:04:17.6]} 10... Bxd2+ {[%clk 0:04:24.6]} 11. Nxd2 {[%clk
0:04:14.4]} 11... Nf4 {[%clk 0:04:23.2]} 12. Bf3 {[%clk 0:04:06.8]} 12... O-O
{[%clk 0:04:18.2]} 13. Nb3 {[%clk 0:03:39.4]} 13... f5 {[%clk 0:04:10.8]} 14.
Nc5 {[%clk 0:03:36.4]} 14... Rb8 {[%clk 0:03:58.6]} 15. Qd2 {[%clk 0:03:22.2]}
15... Ne6 {[%clk 0:03:46.7]} 16. Bd5 {[%clk 0:03:17.2]} 16... Qe7 {[%clk
0:03:39.7]} 17. Nxe6 {[%clk 0:02:30.6]} 17... Bxe6 {[%clk 0:03:37.8]} 18. Bxe6+
{[%clk 0:02:27.5]} 18... Qxe6 {[%clk 0:03:36.8]} 19. b3 {[%clk 0:02:13.9]} 19...
e4 {[%clk 0:03:35.1]} 20. dxe4 {[%clk 0:02:01.9]} 20... fxe4 {[%clk 0:03:33.7]}
21. O-O-O {[%clk 0:01:59]} 21... Qe5 {[%clk 0:03:22.8]} 22. Kb1 {[%clk
0:01:56.2]} 22... Rbd8 {[%clk 0:03:16.4]} 23. Nh3 {[%clk 0:01:43.7]} 23... Qf5
{[%clk 0:02:53]} 24. Qc1 {[%clk 0:01:21]} 24... Qb5 {[%clk 0:02:20.7]} 25. Qb2
{[%clk 0:01:01.2]} 25... Qxe2 {[%clk 0:02:15.1]} 26. Rde1 {[%clk 0:00:35.8]}
26... Qf3 {[%clk 0:02:13.2]} 27. Rd1 {[%clk 0:00:19.8]} 27... d3 {[%clk
0:02:02.8]} 0-1

[Event "Live Chess"]
[Site "Chess.com"]
[Date "2023.05.20"]
[Round "-"]
[White "Jo1ts"]
[Black "JoeyCage"]
[Result "0-1"]
[WhiteElo "730"]
[BlackElo "2309"]
[TimeControl "300"]
[EndTime "13:10:41 PDT"]
[Termination "JoeyCage won by resignation"]

1. d4 {[%clk 0:04:58.3]} 1... g6 {[%clk 0:04:58.6]} 2. Bf4 {[%clk 0:04:57.5]}
2... Bg7 {[%clk 0:04:57.6]} 3. Nf3 {[%clk 0:04:56.1]} 3... c5 {[%clk 0:04:56.8]}
4. e3 {[%clk 0:04:53.4]} 4... Qb6 {[%clk 0:04:55.3]} 5. b3 {[%clk 0:04:46.9]}
5... Nc6 {[%clk 0:04:52.7]} 6. Nc3 {[%clk 0:04:36.4]} 6... e6 {[%clk 0:04:44.3]}
7. Bc4 {[%clk 0:04:29.5]} 7... cxd4 {[%clk 0:04:41.9]} 8. exd4 {[%clk
0:04:21.3]} 8... Nxd4 {[%clk 0:04:40]} 9. Be3 {[%clk 0:04:13.8]} 9... Nxf3+
{[%clk 0:04:36.1]} 10. gxf3 {[%clk 0:04:09.5]} 10... Bxc3+ {[%clk 0:04:34]} 11.
Kf1 {[%clk 0:04:00.1]} 11... Qc7 {[%clk 0:04:31.4]} 12. Rc1 {[%clk 0:03:56.3]}
12... Ne7 {[%clk 0:04:27.7]} 13. Qd3 {[%clk 0:03:49.1]} 13... Bg7 {[%clk
0:04:25.4]} 14. Bd4 {[%clk 0:03:46.7]} 14... O-O {[%clk 0:04:23.1]} 15. Bxg7
{[%clk 0:03:42.6]} 15... Kxg7 {[%clk 0:04:21.9]} 16. Qd4+ {[%clk 0:03:38.8]}
16... f6 {[%clk 0:04:20.6]} 17. Re1 {[%clk 0:03:34.2]} 17... Nc6 {[%clk
0:04:19.2]} 18. Qc5 {[%clk 0:03:28]} 18... d6 {[%clk 0:04:17.1]} 19. Qe3 {[%clk
0:03:20.2]} 19... d5 {[%clk 0:04:15.9]} 20. Bb5 {[%clk 0:03:15.7]} 20... Ne5
{[%clk 0:04:13.8]} 21. f4 {[%clk 0:03:09]} 21... Nf7 {[%clk 0:04:12.3]} 22. Rg1
{[%clk 0:02:58.3]} 22... Nd6 {[%clk 0:04:10.9]} 23. Bd3 {[%clk 0:02:50.9]} 23...
Nf5 {[%clk 0:04:09.7]} 24. Bxf5 {[%clk 0:02:45.7]} 24... exf5 {[%clk 0:04:08.5]}
25. c4 {[%clk 0:02:32.6]} 25... dxc4 {[%clk 0:04:06.2]} 26. bxc4 {[%clk
0:02:31.5]} 26... Bd7 {[%clk 0:04:03.9]} 27. Qe7+ {[%clk 0:02:25.7]} 27... Rf7
{[%clk 0:04:02.6]} 28. Qb4 {[%clk 0:02:12.5]} 28... Bc6 {[%clk 0:04:01.1]} 29.
Rg3 {[%clk 0:01:55.9]} 29... Qxf4 {[%clk 0:03:36]} 30. Re7 {[%clk 0:01:39]}
30... Rf8 {[%clk 0:03:32.6]} 31. Ree3 {[%clk 0:01:15.4]} 31... Rd8 {[%clk
0:03:28]} 32. Ke2 {[%clk 0:01:06.5]} 32... Qd4 {[%clk 0:03:24.1]} 33. Rd3 {[%clk
0:00:56.4]} 33... Qe4+ {[%clk 0:03:22.1]} 34. Rge3 {[%clk 0:00:49.6]} 34... Qg4+
{[%clk 0:03:18.9]} 35. Rf3 {[%clk 0:00:45.4]} 35... Rxd3 {[%clk 0:03:15.2]} 36.
Kxd3 {[%clk 0:00:41.7]} 36... Qxf3+ {[%clk 0:03:13.6]} 37. Kd4 {[%clk
0:00:39.6]} 37... Qxf2+ {[%clk 0:03:09.9]} 38. Kc3 {[%clk 0:00:37.2]} 38... Qe3+
{[%clk 0:03:07.9]} 39. Kb2 {[%clk 0:00:34.7]} 39... Rd7 {[%clk 0:03:06.4]} 40.
Ka1 {[%clk 0:00:15.1]} 40... Rd1+ {[%clk 0:03:02.7]} 41. Kb2 {[%clk 0:00:13.2]}
41... Rd2+ {[%clk 0:03:01.4]} 42. Qxd2 {[%clk 0:00:11.3]} 42... Qxd2+ {[%clk
0:03:00.1]} 43. Kb3 {[%clk 0:00:11.2]} 43... Qd3+ {[%clk 0:02:56.3]} 44. Kb4
{[%clk 0:00:10.1]} 44... Qd6+ {[%clk 0:02:52.3]} 45. c5 {[%clk 0:00:08.2]} 45...
Qd4+ {[%clk 0:02:50.7]} 46. Kb3 {[%clk 0:00:05.2]} 46... Bd5+ {[%clk 0:02:49.7]}
47. Kc2 {[%clk 0:00:03.2]} 47... Qe3 {[%clk 0:02:47]} 0-1

[Event "Live Chess"]
[Site "Chess.com"]
[Date "2023.05.20"]
[Round "-"]
[White "GMHarry-youtube"]
[Black "Trendle"]
[Result "0-1"]
[WhiteElo "2109"]
[BlackElo "2673"]
[TimeControl "300"]
[EndTime "13:10:45 PDT"]
[Termination "Trendle won on time"]

1. e4 {[%clk 0:04:57.9]} 1... e6 {[%clk 0:04:55.2]} 2. d4 {[%clk 0:04:56.5]}
2... d5 {[%clk 0:04:54.7]} 3. e5 {[%clk 0:04:56.2]} 3... c5 {[%clk 0:04:53.4]}
4. c3 {[%clk 0:04:55.9]} 4... Nc6 {[%clk 0:04:52.3]} 5. Nf3 {[%clk 0:04:55.4]}
5... Qb6 {[%clk 0:04:51.1]} 6. Bd3 {[%clk 0:04:54.9]} 6... cxd4 {[%clk
0:04:49.9]} 7. O-O {[%clk 0:04:54]} 7... Bd7 {[%clk 0:04:48.7]} 8. Re1 {[%clk
0:04:52.3]} 8... Nge7 {[%clk 0:04:46.8]} 9. h4 {[%clk 0:04:51.6]} 9... a6 {[%clk
0:04:44.3]} 10. h5 {[%clk 0:04:48.5]} 10... g6 {[%clk 0:04:41.8]} 11. h6 {[%clk
0:04:45.9]} 11... Ng8 {[%clk 0:04:38.8]} 12. Bg5 {[%clk 0:04:39.5]} 12... Qxb2
{[%clk 0:04:33.5]} 13. Nbd2 {[%clk 0:04:34.6]} 13... dxc3 {[%clk 0:04:26.9]} 14.
Rb1 {[%clk 0:04:32.5]} 14... Qxa2 {[%clk 0:04:15]} 15. Nb3 {[%clk 0:04:26.7]}
15... Bxh6 {[%clk 0:03:57.5]} 16. Bxh6 {[%clk 0:04:18.2]} 16... Nxh6 {[%clk
0:03:57.4]} 17. Ra1 {[%clk 0:04:17.1]} 17... Qb2 {[%clk 0:03:50.5]} 18. Re2
{[%clk 0:04:03.1]} 18... c2 {[%clk 0:03:49.3]} 19. Bxc2 {[%clk 0:03:57.2]} 19...
Qc3 {[%clk 0:03:42.5]} 20. Rc1 {[%clk 0:03:47.2]} 20... Qb4 {[%clk 0:03:38.1]}
21. Nbd4 {[%clk 0:03:36.7]} 21... Nf5 {[%clk 0:03:34.9]} 22. Rb1 {[%clk
0:03:25]} 22... Nfxd4 {[%clk 0:03:06.3]} 23. Rxb4 {[%clk 0:03:17.5]} 23... Nxe2+
{[%clk 0:03:05.2]} 24. Qxe2 {[%clk 0:03:14.6]} 24... Nxb4 {[%clk 0:03:05.1]} 25.
Qd2 {[%clk 0:03:10.3]} 25... a5 {[%clk 0:02:58.5]} 26. Bb1 {[%clk 0:03:05.8]}
26... O-O-O {[%clk 0:02:22.4]} 27. Qd4 {[%clk 0:02:54.5]} 27... Kb8 {[%clk
0:02:18.6]} 28. Qb6 {[%clk 0:02:52.2]} 28... Rc8 {[%clk 0:02:14]} 29. Nd2 {[%clk
0:02:24.6]} 29... Rc1+ {[%clk 0:02:03.6]} 30. Kh2 {[%clk 0:02:23.1]} 30... Nc6
{[%clk 0:02:01.4]} 31. Bd3 {[%clk 0:02:11.9]} 31... Rc8 {[%clk 0:01:52.2]} 32.
Nb3 {[%clk 0:01:58.7]} 32... Rc3 {[%clk 0:01:21.5]} 33. Nc5 {[%clk 0:01:41.8]}
33... Rxc5 {[%clk 0:01:19.5]} 34. Qxc5 {[%clk 0:01:41.6]} 34... Rc7 {[%clk
0:01:14.1]} 35. Qf8+ {[%clk 0:01:26.1]} 35... Bc8 {[%clk 0:01:12]} 36. Qd6
{[%clk 0:01:23.4]} 36... b6 {[%clk 0:01:03.5]} 37. Bb5 {[%clk 0:01:12.5]} 37...
Bb7 {[%clk 0:01:02.5]} 38. Kg3 {[%clk 0:01:02.1]} 38... h6 {[%clk 0:00:55.1]}
39. Qf8+ {[%clk 0:00:59.8]} 39... Ka7 {[%clk 0:00:52.8]} 40. Qxh6 {[%clk
0:00:58.8]} 40... Nxe5 {[%clk 0:00:51.1]} 41. Qf4 {[%clk 0:00:53.1]} 41... Rc3+
{[%clk 0:00:47.5]} 42. f3 {[%clk 0:00:52.2]} 42... Nc6 {[%clk 0:00:37.2]} 43.
Qxf7 {[%clk 0:00:49.7]} 43... Rc5 {[%clk 0:00:36.4]} 44. Bd3 {[%clk 0:00:44.6]}
44... a4 {[%clk 0:00:34.7]} 45. Qxg6 {[%clk 0:00:39.1]} 45... a3 {[%clk
0:00:33.9]} 46. Bb1 {[%clk 0:00:37.8]} 46... Nb4 {[%clk 0:00:31.6]} 47. Qxe6
{[%clk 0:00:33.8]} 47... Rc1 {[%clk 0:00:28.5]} 48. Qf5 {[%clk 0:00:26.6]} 48...
d4 {[%clk 0:00:26.6]} 49. Qb5 {[%clk 0:00:14]} 49... Rxb1 {[%clk 0:00:23.9]} 50.
Qa4+ {[%clk 0:00:13.3]} 50... Kb8 {[%clk 0:00:22.1]} 51. Qxa3 {[%clk 0:00:12.5]}
51... Nc6 {[%clk 0:00:19.1]} 52. Qd3 {[%clk 0:00:10.4]} 52... Rc1 {[%clk
0:00:17]} 53. f4 {[%clk 0:00:09.9]} 53... Rc3 {[%clk 0:00:16]} 54. Kf2 {[%clk
0:00:08.4]} 54... Rxd3 {[%clk 0:00:15.1]} 55. f5 {[%clk 0:00:08.3]} 55... Re3
{[%clk 0:00:14.7]} 56. f6 {[%clk 0:00:08.2]} 56... Ne5 {[%clk 0:00:13.7]} 57. g4
{[%clk 0:00:07]} 57... Nf7 {[%clk 0:00:13.6]} 58. g5 {[%clk 0:00:06.3]} 58...
Nxg5 {[%clk 0:00:13.5]} 59. Kf1 {[%clk 0:00:05.8]} 59... Nf7 {[%clk 0:00:12.8]}
60. Kf2 {[%clk 0:00:05.7]} 60... Kc7 {[%clk 0:00:12]} 61. Kf1 {[%clk 0:00:05.6]}
61... Kd6 {[%clk 0:00:11.7]} 62. Kf2 {[%clk 0:00:05.5]} 62... Ke5 {[%clk
0:00:11.3]} 63. Kf1 {[%clk 0:00:04.9]} 63... Kf4 {[%clk 0:00:11.1]} 64. Kf2
{[%clk 0:00:04.8]} 64... b5 {[%clk 0:00:10.3]} 65. Kf1 {[%clk 0:00:04.5]} 65...
b4 {[%clk 0:00:10.2]} 66. Kf2 {[%clk 0:00:04.4]} 66... b3 {[%clk 0:00:09.8]} 67.
Kf1 {[%clk 0:00:02.5]} 67... b2 {[%clk 0:00:09.6]} 68. Kf2 {[%clk 0:00:02.1]}
68... Ne5 {[%clk 0:00:05.6]} 69. Kg1 {[%clk 0:00:00.1]} 69... b1=Q+ {[%clk
0:00:03.8]} 0-1

[Event "Live Chess"]
[Site "Chess.com"]
[Date "2023.05.20"]
[Round "-"]
[White "Leonid_Starozhilov"]
[Black "Hoogleboogle"]
[Result "1-0"]
[WhiteElo "2637"]
[BlackElo "1386"]
[TimeControl "300"]
[EndTime "13:10:47 PDT"]
[Termination "Leonid_Starozhilov won by checkmate"]

1. d4 {[%clk 0:04:58.5]} 1... Nf6 {[%clk 0:04:56.2]} 2. Bf4 {[%clk 0:04:57]}
2... e6 {[%clk 0:04:54.6]} 3. Nc3 {[%clk 0:04:56.7]} 3... d5 {[%clk 0:04:52.5]}
4. Nf3 {[%clk 0:04:55.1]} 4... c5 {[%clk 0:04:50.9]} 5. e3 {[%clk 0:04:54.6]}
5... cxd4 {[%clk 0:04:49.3]} 6. exd4 {[%clk 0:04:53.6]} 6... Nc6 {[%clk
0:04:47.1]} 7. Bb5 {[%clk 0:04:52.3]} 7... a6 {[%clk 0:04:45]} 8. Bxc6+ {[%clk
0:04:51.3]} 8... bxc6 {[%clk 0:04:43.6]} 9. O-O {[%clk 0:04:51.2]} 9... Bd6
{[%clk 0:04:33.6]} 10. Ne5 {[%clk 0:04:49.4]} 10... Bxe5 {[%clk 0:04:27.1]} 11.
Bxe5 {[%clk 0:04:47.9]} 11... a5 {[%clk 0:04:18.5]} 12. Na4 {[%clk 0:04:43.1]}
12... Ba6 {[%clk 0:04:12.6]} 13. Re1 {[%clk 0:04:40]} 13... O-O {[%clk
0:04:01.4]} 14. b3 {[%clk 0:04:37.9]} 14... Bb5 {[%clk 0:03:37]} 15. Nc5 {[%clk
0:04:35]} 15... a4 {[%clk 0:03:31.2]} 16. Qf3 {[%clk 0:04:26.3]} 16... axb3
{[%clk 0:03:22.5]} 17. axb3 {[%clk 0:04:24.4]} 17... Rxa1 {[%clk 0:03:17.5]} 18.
Rxa1 {[%clk 0:04:22.9]} 18... Nd7 {[%clk 0:03:00.3]} 19. Qg3 {[%clk 0:04:17.5]}
19... f6 {[%clk 0:02:54.5]} 20. Nxe6 {[%clk 0:04:15.5]} 20... Qe7 {[%clk
0:02:44.4]} 21. Nxf8 {[%clk 0:04:14.2]} 21... Qxf8 {[%clk 0:02:32.3]} 22. Bd6
{[%clk 0:04:13]} 22... Qe8 {[%clk 0:02:21.5]} 23. Qe3 {[%clk 0:04:10.6]} 23...
Qxe3 {[%clk 0:02:17.5]} 24. fxe3 {[%clk 0:04:08.1]} 24... Kf7 {[%clk 0:02:15.6]}
25. Ra7 {[%clk 0:04:01.2]} 25... Ke6 {[%clk 0:02:10.3]} 26. Bb4 {[%clk
0:03:59.3]} 26... g5 {[%clk 0:02:04.1]} 27. h3 {[%clk 0:03:51.7]} 27... h5
{[%clk 0:02:02.2]} 28. g4 {[%clk 0:03:50.7]} 28... hxg4 {[%clk 0:02:00.9]} 29.
hxg4 {[%clk 0:03:49.9]} 29... Nf8 {[%clk 0:01:50.3]} 30. Re7# {[%clk 0:03:47.3]}
1-0